bitfinex/quotes_SOLUSD_20251223
["timestamp","ask_amount","ask_price","bid_price","bid_amount"]
[1766527147790,0.71,124.27,124.25,0.1]
[1766527148692,30.55192189,124.31,124.25,0.1]
[1766527148693,50.66395031,124.31,124.25,0.1]
[1766527148900,0.71,124.29,124.26,0.68]
[1766527149464,2.59640355,124.29,124.26,0.68]
[1766527149787,19.192356,124.31,124.26,0.68]
[1766527150088,19.192356,124.31,124.26,15.38]
[1766527150089,0.71,124.3,124.26,15.38]
[1766527150992,0.71,124.3,124.27,0.68]
[1766527153578,9.9304411,124.32,124.28,0.68]
[1766527153778,0.71,124.31,124.28,0.68]
[1766527153988,8.75403755,124.32,124.28,0.68]
[1766527156689,8.75450703,124.31,124.28,0.68]
[1766527159396,8.04375804,124.32,124.28,8.04633211]
[1766527159586,19.19109707,124.33,124.29,0.68]
[1766527159802,8.75342411,124.33,124.29,2.56640355]
[1766527159996,8.75342411,124.33,124.3,0.68]
[1766527162001,8.75342411,124.33,124.3,0.68]
[1766527163696,8.04342411,124.33,124.3,0.68]
[1766527163902,0.71,124.32,124.3,0.68]
[1766527169904,0.71,124.31,124.28,0.68]
[1766527170402,10.99110926,124.32,124.26,0.68]
[1766527170403,0.71,124.29,124.26,0.68]
[1766527170904,0.71,124.28,124.25,0.1]
[1766527171104,0.71,124.27,124.25,0.1]
[1766527171312,0.71,124.27,124.25,0.78]
[1766527173021,0.71,124.26,124.25,0.1]
[1766527173187,3.65710354,124.26,124.25,0.1]
[1766527174306,0.71,124.26,124.25,0.1]
[1766527174896,10.99437618,124.27,124.25,0.1]
[1766527175198,11.65437618,124.27,124.25,0.1]
[1766527177508,0.66,124.26,124.25,0.1]
[1766527177709,11.65437618,124.27,124.25,0.1]
[1766527180088,8.70727264,124.27,124.25,0.1]
[1766527186019,8.04727264,124.27,124.25,0.82]
[1766527186724,8.70727264,124.27,124.25,0.82]
[1766527187801,8.04650126,124.28,124.25,0.82]
[1766527188116,8.04650126,124.28,124.26,0.72]
[1766527188835,8.70650126,124.28,124.26,0.72]
[1766527191804,11.6536048,124.28,124.26,0.72]
[1766527194413,20.11493384,124.29,124.25,0.1]
[1766527194414,0.66,124.33,124.28,0.72]
[1766527194618,0.66,124.33,124.3,3.66710354]
[1766527195213,8.7035849,124.33,124.3,3.66710354]
[1766527196632,8.7035849,124.33,124.3,0.72]
[1766527196838,8.7035849,124.33,124.3,3.66710354]
[1766527197210,8.7035849,124.33,124.3,0.72]
[1766527200437,8.70270168,124.34,124.3,0.72]
[1766527200731,3.60710354,124.33,124.3,0.72]
[1766527200922,2.94710354,124.32,124.3,0.72]
[1766527201326,0.66,124.3,124.25,0.1]
[1766527201534,0.66,124.3,124.26,0.72]
[1766527201847,0.66,124.29,124.26,0.72]
[1766527202046,2.94710354,124.28,124.26,0.72]
[1766527202349,2.94710354,124.28,124.25,22.84794299]
[1766527202350,3.60710354,124.28,124.25,0.82]
[1766527205561,11.6536241,124.28,124.25,0.82]
[1766527205727,3.60710354,124.28,124.25,8.8682885]
[1766527206346,3.60710354,124.28,124.25,0.82]
[1766527209629,3.62710354,124.27,124.25,0.82]
[1766527210247,3.62710354,124.27,124.25,0.1]
[1766527210453,2.94710354,124.27,124.25,0.81]
[1766527212763,8.72655094,124.28,124.25,0.81]
[1766527212943,2.94710354,124.27,124.25,0.81]
[1766527216859,3.62710354,124.27,124.25,0.1]
[1766527217061,3.62710354,124.27,124.25,0.81]
[1766527217952,0.68,124.28,124.25,0.81]
[1766527218260,3.62710354,124.28,124.25,0.81]
[1766527221060,0.68,124.28,124.25,0.81]
[1766527221261,3.62710354,124.28,124.25,0.81]
[1766527225063,0.68,124.28,124.25,8.14802796]
[1766527225266,3.62710354,124.28,124.26,0.71]
[1766527226866,3.62710354,124.28,124.25,8.14802796]
[1766527227169,3.62710354,124.28,124.25,0.81]
[1766527229063,3.62710354,124.28,124.25,8.85817114]
[1766527229366,3.62710354,124.26,124.2,0.1]
[1766527229567,3.62710354,124.25,124.22,0.71]
[1766527230072,2.56852201,124.25,124.22,0.71]
[1766527230874,2.56852201,124.25,124.22,8.76019697]
[1766527233486,2.56852201,124.25,124.23,0.71]
[1766527234648,1.88852201,124.26,124.23,0.71]
[1766527234970,10.62577352,124.27,124.23,0.71]
[1766527235175,0.69,124.26,124.23,0.71]
[1766527236270,20.11586739,124.28,124.23,0.71]
[1766527236271,18.48337253,124.29,124.23,0.71]
[1766527236572,2.57852201,124.27,124.24,0.69]
[1766527238474,0.69,124.27,124.24,0.69]
[1766527238650,13.00619497,124.3,124.25,0.66]
[1766527239576,1.88852201,124.29,124.25,0.66]
[1766527240080,2.56852201,124.27,124.24,23.40870246]
[1766527240280,0.68,124.27,124.24,23.40870246]
[1766527240582,2.56852201,124.27,124.25,0.66]
[1766527240774,1.88852201,124.27,124.25,0.66]
[1766527243175,1.88852201,124.27,124.25,8.7082083]
[1766527243359,2.56852201,124.28,124.25,8.7082083]
[1766527245380,2.56852201,124.28,124.25,0.66]
[1766527247885,2.56852201,124.28,124.25,8.70820117]
[1766527250788,2.56852201,124.26,124.23,15.36]
[1766527250962,0.68,124.26,124.24,0.66]
[1766527251367,2.56852201,124.27,124.24,0.66]
[1766527251893,8.04647087,124.28,124.21,0.66]
[1766527251894,0.68,124.24,124.21,0.66]
[1766527252681,12.32619497,124.25,124.22,0.66]
[1766527252895,13.00619497,124.25,124.22,0.66]
[1766527255767,19.16604948,124.25,124.22,0.66]
[1766527258080,11.11767296,124.25,124.22,0.66]
[1766527258885,10.43767296,124.25,124.23,0.66]
[1766527260695,11.11767296,124.25,124.22,15.36]
[1766527261600,11.11767296,124.25,124.22,14.7]
[1766527261777,11.11767296,124.25,124.23,0.66]
[1766527265107,10.43767296,124.25,124.23,0.66]
[1766527266306,19.1660864,124.25,124.23,0.66]
[1766527266602,18.4860864,124.25,124.22,14.7]
[1766527266783,0.68,124.23,124.2,0.76]
[1766527266992,0.71,124.22,124.2,0.1]
[1766527267392,8.76052803,124.22,124.2,0.1]
[1766527269602,10.64905004,124.22,124.2,0.1]
[1766527270602,0.71,124.21,124.2,0.1]
[1766527271189,8.76154409,124.2,124.18,0.2]
[1766527271509,8.76154409,124.2,124.18,0.88]
[1766527272104,8.76154409,124.2,124.18,0.2]
[1766527272303,0.71,124.19,124.18,0.2]
[1766527272610,8.76154409,124.2,124.18,0.2]
[1766527276711,14.7,124.22,124.18,0.2]
[1766527277011,10.43767296,124.21,124.2,2.56852201]
[1766527278099,10.43767296,124.21,124.2,0.68]
[1766527279015,10.43767296,124.21,124.19,0.68]
[1766527279589,8.04924751,124.24,124.21,0.68]
[1766527279895,142.93009014,124.29,124.24,0.68]
[1766527279896,0.71,124.28,124.24,0.68]
[1766527280089,0.71,124.28,124.24,2.56852201]
[1766527280294,0.71,124.28,124.24,0.68]
[1766527280710,0.71,124.27,124.24,0.68]
[1766527281515,0.71,124.25,124.22,0.68]
[1766527281693,1.88852201,124.26,124.22,0.68]
[1766527281894,0.71,124.26,124.22,0.68]
[1766527282697,8.04828973,124.25,124.22,0.68]
[1766527283219,8.75780244,124.26,124.22,1.88852201]
[1766527283413,8.0471663,124.27,124.23,2.56852201]
[1766527283597,8.0471663,124.27,124.25,0.68]
[1766527285229,8.0471663,124.27,124.24,1.88852201]
[1766527285401,8.0471663,124.27,124.24,2.56852201]
[1766527286212,8.0471663,124.27,124.25,0.68]
[1766527286623,8.7571663,124.27,124.24,0.68]
[1766527286797,8.7571663,124.27,124.24,2.56852201]
[1766527286992,10.43767296,124.28,124.24,2.56852201]
[1766527286993,8.04569957,124.29,124.26,1.88852201]
[1766527287220,8.04569957,124.29,124.27,0.68]
[1766527287527,0.71,124.3,124.27,0.68]
[1766527287528,8.75536037,124.3,124.27,0.68]
[1766527287850,0.71,124.29,124.26,0.68]
[1766527288411,0.71,124.28,124.25,0.68]
[1766527290523,19.19447993,124.28,124.25,0.68]
[1766527296019,11.14767296,124.28,124.25,2.94921954]
[1766527296219,10.43767296,124.28,124.26,2.94921954]
[1766527296426,8.04587127,124.29,124.26,3.61921954]
[1766527296806,8.75587127,124.29,124.26,3.61921954]
[1766527297598,8.75587127,124.29,124.26,0.67]
[1766527299625,8.04587127,124.29,124.25,2.94921954]
[1766527299816,0.68,124.28,124.25,0.68]
[1766527300209,0.68,124.28,124.24,14.7]
[1766527300409,0.68,124.28,124.25,0.68]
[1766527301207,0.68,124.28,124.25,3.62921954]
[1766527301814,8.72672542,124.28,124.25,3.62921954]
[1766527304234,8.72672542,124.28,124.25,0.68]
[1766527306731,0.68,124.27,124.24,18.32921954]
[1766527307235,0.68,124.27,124.25,0.68]
[1766527307837,8.72672542,124.28,124.25,0.68]
[1766527311042,8.72672542,124.28,124.23,8.04930032]
[1766527311043,0.68,124.27,124.23,3.62921954]
[1766527311823,0.68,124.27,124.2,8.05121105]
[1766527312029,0.68,124.27,124.24,0.68]
[1766527312544,0.68,124.27,124.23,3.62921954]
[1766527312930,8.04764204,124.26,124.23,3.62921954]
[1766527313143,8.72764204,124.26,124.23,3.62921954]
[1766527315834,8.04764204,124.26,124.24,0.68]
[1766527325053,8.72764204,124.26,124.24,0.68]
[1766527327065,8.04699444,124.27,124.24,3.62921954]
[1766527327270,31.22354035,124.28,124.24,3.62921954]
[1766527327271,10.43767296,124.26,124.25,0.72]
[1766527327750,8.04599558,124.29,124.25,2.94921954]
[1766527327950,8.04599558,124.29,124.26,0.72]
[1766527328156,8.71599558,124.29,124.26,0.72]
[1766527328928,8.04599558,124.29,124.26,0.72]
[1766527329133,0.67,124.28,124.25,3.66921954]
[1766527329555,0.67,124.28,124.24,17.64921954]
[1766527329748,0.67,124.28,124.24,15.42]
[1766527329948,0.67,124.28,124.24,14.7]
[1766527330128,0.67,124.28,124.24,15.42]
[1766527330458,0.67,124.28,124.25,0.72]
[1766527333559,8.71655851,124.28,124.25,0.72]
[1766527335735,8.71655851,124.28,124.25,3.66921954]
[1766527335942,8.04655851,124.28,124.26,0.72]
[1766527336353,8.71655851,124.28,124.26,0.72]
[1766527341372,8.04592167,124.29,124.26,0.72]
[1766527341673,8.04592167,124.29,124.27,0.72]
[1766527342062,8.04592167,124.29,124.27,3.66921954]
[1766527342576,19.15293993,124.3,124.27,3.66921954]
[1766527342875,8.04526697,124.3,124.29,0.72]
[1766527343780,8.04440511,124.31,124.29,0.72]
[1766527345666,20.10892961,124.33,124.3,2.94921954]
[1766527345667,8.04311107,124.33,124.3,2.94921954]
[1766527345859,12.91258866,124.35,124.32,0.72]
[1766527346058,12.91258866,124.35,124.31,2.94921954]
[1766527346059,0.67,124.34,124.31,0.72]
[1766527347179,11.66174733,124.34,124.31,0.72]
[1766527350585,8.71252779,124.34,124.31,0.72]
[1766527350786,8.04210142,124.35,124.31,0.72]
[1766527351083,8.04210142,124.35,124.32,0.72]
[1766527351263,8.71210142,124.35,124.32,0.72]
[1766527352684,20.36442343,124.36,124.32,0.72]
[1766527352890,21.03442343,124.36,124.32,0.72]
[1766527353068,20.36442343,124.36,124.32,0.72]
[1766527353268,0.67,124.35,124.32,0.72]
[1766527353686,20.36442343,124.36,124.32,0.72]
[1766527353888,21.08442343,124.36,124.32,0.72]
[1766527355162,19.19892982,124.36,124.32,0.72]
[1766527355369,21.08442343,124.36,124.32,0.72]
[1766527358471,19.19892982,124.36,124.32,0.72]
[1766527360193,21.08442343,124.36,124.32,0.72]
[1766527360492,19.19892982,124.36,124.32,0.72]
[1766527360686,20.10184738,124.37,124.34,0.66]
[1766527360687,8.04083179,124.37,124.34,0.66]
[1766527360890,8.04083179,124.37,124.35,0.66]
[1766527363798,8.24015006,124.38,124.35,0.66]
[1766527364595,8.91015006,124.38,124.35,0.66]
[1766527365485,10.79564367,124.38,124.35,0.66]
[1766527366473,10.12564367,124.38,124.35,0.66]
[1766527366680,8.24015006,124.38,124.35,0.66]
[1766527366996,10.12564367,124.38,124.35,0.66]
[1766527368195,9.9261722,124.37,124.35,0.66]
[1766527368587,0.67,124.35,124.31,1.46444051]
[1766527368797,1.88549361,124.32,124.31,0.66]
[1766527368987,0.67,124.33,124.29,8.70566593]
[1766527369302,1.88549361,124.33,124.3,0.66]
[1766527370678,21.03624984,124.34,124.3,0.66]
[1766527371109,12.32316657,124.34,124.3,8.04472999]
[1766527371401,12.32316657,124.34,124.31,0.66]
[1766527371597,20.36571795,124.34,124.31,0.66]
[1766527373612,10.59754215,124.35,124.31,0.66]
[1766527373775,9.92754215,124.35,124.31,0.66]
[1766527374178,1.88549361,124.34,124.31,0.66]
[1766527374396,1.88549361,124.34,124.31,14.68]
[1766527374595,1.88549361,124.34,124.32,0.66]
[1766527374807,9.92754215,124.35,124.32,0.66]
[1766527375987,1.88549361,124.34,124.32,0.66]
[1766527376597,1.88549361,124.37,124.32,8.04358651]
[1766527376799,10.79571678,124.38,124.33,0.66]
[1766527377000,10.79571678,124.38,124.34,14.68]
[1766527377304,10.79571678,124.38,124.35,0.66]
[1766527378510,8.91022317,124.38,124.35,0.66]
[1766527378814,8.24022317,124.38,124.35,0.66]
[1766527380512,10.79571678,124.38,124.35,0.66]
[1766527383215,8.91022317,124.38,124.35,0.66]
[1766527383393,10.79571678,124.38,124.35,0.66]
[1766527384821,8.24022317,124.38,124.35,0.66]
[1766527385505,0.2,124.38,124.35,8.04172767]
[1766527385698,0.2,124.38,124.36,0.66]
[1766527386716,0.2,124.41,124.37,0.68]
[1766527386892,0.2,124.41,124.38,0.68]
[1766527386893,8.23819912,124.41,124.38,0.68]
[1766527387092,10.77369273,124.41,124.38,0.68]
[1766527387298,0.65,124.4,124.37,15.36]
[1766527389829,0.2,124.41,124.38,0.68]
[1766527391904,0.2,124.41,124.39,0.68]
[1766527398406,0.2,124.41,124.37,22.72024659]
[1766527398407,21.21116422,124.41,124.38,0.68]
[1766527398628,11.28767296,124.41,124.38,0.68]
[1766527399945,10.63767296,124.41,124.38,0.68]
[1766527400934,10.63767296,124.41,124.38,15.36]
[1766527401136,10.63767296,124.41,124.39,0.68]
[1766527401307,18.67564432,124.41,124.39,0.68]
[1766527402213,10.63767296,124.41,124.39,0.68]
[1766527405251,18.67565427,124.41,124.39,0.68]
[1766527406136,1.88549361,124.4,124.37,14.68]
[1766527406433,0.65,124.39,124.37,14.68]
[1766527406826,0.65,124.39,124.37,15.36]
[1766527407026,10.63767296,124.41,124.38,0.68]
[1766527407221,0.2,124.41,124.39,0.68]
[1766527407734,0.2,124.42,124.41,0.68]
[1766527409026,0.2,124.42,124.4,14.68]
[1766527409027,8.03628885,124.44,124.4,14.68]
[1766527409218,10.02115966,124.45,124.41,0.68]
[1766527409424,10.67115966,124.45,124.41,0.68]
[1766527410738,8.78566605,124.45,124.41,0.68]
[1766527411342,10.67115966,124.45,124.41,0.68]
[1766527411834,2.63549361,124.45,124.41,8.71781866]
[1766527412035,0.1,124.45,124.42,0.68]
[1766527412239,0.1,124.45,124.44,0.68]
[1766527412427,0.2,124.46,124.44,0.68]
[1766527414337,0.68,124.45,124.43,14.68]
[1766527415138,0.68,124.45,124.43,15.36]
[1766527417219,0.68,124.45,124.43,14.68]
[1766527418347,19.37249336,124.46,124.43,15.36]
[1766527422447,0.2,124.46,124.44,0.68]
[1766527423045,0.9,124.46,124.44,0.68]
[1766527424344,8.93471542,124.46,124.43,14.68]
[1766527424542,0.7,124.45,124.43,14.68]
[1766527425552,8.93471542,124.46,124.43,15.36]
[1766527426950,11.87490923,124.46,124.43,15.36]
[1766527427332,0.7,124.45,124.43,15.36]
[1766527427944,11.17490923,124.46,124.43,15.36]
[1766527428144,8.93471542,124.46,124.43,15.36]
[1766527428346,0.7,124.45,124.43,15.36]
[1766527430063,0.7,124.45,124.43,0.68]
[1766527432062,0.2,124.46,124.44,0.68]
[1766527432357,0.9,124.46,124.43,8.71662556]
[1766527435274,0.7,124.44,124.41,18.42398771]
[1766527435448,0.7,124.42,124.39,0.68]
[1766527436664,0.7,124.42,124.39,8.71920332]
[1766527436865,0.7,124.43,124.4,0.68]
[1766527437252,8.73670252,124.43,124.4,0.68]
[1766527438051,0.7,124.42,124.39,8.71920332]
[1766527440770,0.7,124.42,124.4,0.68]
[1766527441269,0.7,124.4,124.37,0.68]
[1766527441451,3.64019381,124.4,124.37,0.68]
[1766527441956,3.64019381,124.4,124.36,22.72079301]
[1766527441957,0.7,124.39,124.36,15.36]
[1766527442163,3.64019381,124.39,124.36,15.36]
[1766527442360,0.7,124.38,124.36,14.68]
[1766527442861,0.7,124.38,124.36,15.36]
[1766527443372,0.7,124.39,124.36,15.36]
[1766527443949,11.67918177,124.4,124.37,0.68]
[1766527444170,8.73819752,124.41,124.37,3.62019381]
[1766527444554,0.7,124.42,124.38,0.68]
[1766527445150,0.7,124.42,124.39,0.68]
[1766527445756,10.97766636,124.42,124.37,10.98014391]
[1766527445967,0.7,124.41,124.38,0.68]
[1766527448975,8.03747255,124.42,124.38,8.0398714]
[1766527449183,0.71,124.42,124.39,0.66]
[1766527454584,2.94019381,124.42,124.39,0.66]
[1766527454768,0.71,124.41,124.39,0.66]
[1766527459188,0.71,124.41,124.37,8.70032152]
[1766527459388,0.71,124.4,124.37,0.66]
[1766527460187,8.7480924,124.41,124.37,0.66]
[1766527460373,8.0380924,124.41,124.37,11.64068961]
[1766527460570,0.71,124.4,124.37,10.98068961]
[1766527460770,0.71,124.4,124.38,0.66]
[1766527463969,8.74750988,124.42,124.39,0.66]
[1766527464176,0.71,124.43,124.4,0.66]
[1766527466999,0.71,124.42,124.39,15.34]
[1766527474908,0.71,124.42,124.39,0.66]
[1766527475201,0.68,124.41,124.38,9.9226872]
[1766527475392,0.68,124.41,124.38,25.2526872]
[1766527476109,0.68,124.41,124.38,23.36958939]
[1766527481211,0.68,124.41,124.39,0.7]
[1766527483190,0.68,124.41,124.38,14.68]
[1766527483396,0.68,124.41,124.38,15.38]
[1766527484806,0.68,124.4,124.38,14.68]
[1766527485719,0.68,124.4,124.38,15.38]
[1766527500029,0.68,124.4,124.38,0.7]
[1766527506839,20.09260013,124.43,124.38,0.7]
[1766527507143,0.65,124.41,124.38,0.72]
[1766527508737,8.68684298,124.43,124.39,0.72]
[1766527508916,8.68684298,124.43,124.4,0.72]
[1766527512138,8.68684298,124.43,124.39,24.60231599]
[1766527512139,0.65,124.42,124.39,15.4]
[1766527516950,0.65,124.42,124.39,23.43921547]
[1766527517124,0.65,124.42,124.39,25.32231328]
[1766527517324,8.03684298,124.43,124.39,25.32231328]
[1766527517325,19.12381642,124.44,124.41,0.72]
[1766527517743,12.52077077,124.46,124.42,1.88309781]
[1766527517940,0.85,124.46,124.43,2.60309781]
[1766527518428,0.85,124.46,124.43,17.28309781]
[1766527519141,0.85,124.46,124.43,15.4]
[1766527520532,10.11798141,124.46,124.4,22.86975646]
[1766527520732,10.11798141,124.46,124.39,25.32188637]
[1766527520733,0.65,124.43,124.39,25.32188637]
[1766527520941,0.65,124.43,124.4,0.72]
[1766527527455,8.03602177,124.44,124.4,0.72]
[1766527527656,8.68602177,124.44,124.41,0.72]
[1766527527956,0.65,124.44,124.41,0.72]
[1766527528254,18.47319247,124.45,124.42,2.60309781]
[1766527528255,0.65,124.45,124.42,2.60309781]
[1766527528459,0.2,124.46,124.44,0.72]
[1766527528843,0.85,124.46,124.44,0.72]
[1766527529439,0.2,124.46,124.44,0.72]
[1766527530255,0.2,124.46,124.44,2.60309781]
[1766527531349,0.2,124.46,124.44,10.63908709]
[1766527531561,0.2,124.46,124.44,2.60309781]
[1766527533743,0.2,124.47,124.45,0.66]
[1766527537467,0.89,124.47,124.43,37.39638171]
[1766527537639,0.69,124.46,124.43,41.03566693]
[1766527537834,0.69,124.46,124.44,0.7]
[1766527538039,0.89,124.47,124.44,0.7]
[1766527538452,0.69,124.46,124.44,0.7]
[1766527538649,0.2,124.47,124.44,8.73586615]
[1766527538856,0.89,124.47,124.44,11.67515137]
[1766527539071,0.89,124.47,124.44,0.7]
[1766527539261,0.69,124.46,124.43,26.35563516]
[1766527539654,0.69,124.46,124.43,25.65563516]
[1766527539856,0.69,124.46,124.44,0.7]
[1766527542066,0.69,124.46,124.42,8.73705334]
[1766527542266,0.69,124.46,124.42,23.41705334]
[1766527543068,0.69,124.44,124.41,8.03772925]
[1766527543363,0.69,124.44,124.41,8.73772925]
[1766527546870,0.69,124.44,124.4,22.71809901]
[1766527547074,0.69,124.44,124.4,26.35738423]
[1766527547367,0.69,124.44,124.41,0.7]
[1766527547954,0.69,124.44,124.41,8.73792878]
[1766527548559,0.69,124.43,124.41,14.68]
[1766527555478,11.66489184,124.45,124.41,15.38]
[1766527555786,0.69,124.44,124.41,15.38]
[1766527556262,0.69,124.44,124.41,25.65697402]
[1766527556451,0.69,124.45,124.42,0.7]
[1766527556655,0.69,124.45,124.42,8.73728033]
[1766527559157,18.47268557,124.46,124.42,8.03728033]
[1766527559358,0.69,124.46,124.43,0.7]
[1766527560183,0.69,124.46,124.43,15.38]
[1766527564478,0.69,124.46,124.43,23.41661163]
[1766527564873,0.2,124.47,124.44,0.7]
[1766527565069,0.89,124.47,124.44,0.7]
[1766527565273,0.89,124.47,124.44,3.63928522]
[1766527565783,0.2,124.47,124.45,0.7]
[1766527566169,0.2,124.47,124.45,3.63928522]
[1766527566380,0.2,124.47,124.46,0.7]
[1766527566575,0.2,124.47,124.45,18.31928522]
[1766527567169,0.2,124.47,124.45,15.38]
[1766527570489,0.2,124.47,124.45,23.41532817]
[1766527572186,0.2,124.47,124.45,15.38]
[1766527575022,0.1,124.49,124.46,0.7]
[1766527575297,18.77067125,124.51,124.5,0.69]
[1766527575298,1e-08,124.51,124.5,0.69]
[1766527575502,0.1,124.52,124.5,15.37]
[1766527575796,0.1,124.52,124.48,0.8033419]
[1766527575797,0.72,124.51,124.48,16.1833419]
[1766527575980,2.93928522,124.5,124.45,0.7]
[1766527576181,0.72,124.48,124.47,7.35991012]
[1766527576396,0.72,124.48,124.45,14.68]
[1766527576580,0.72,124.48,124.45,15.38]
[1766527576774,0.62,124.5,124.46,0.7]
[1766527577387,0.62,124.5,124.47,0.7]
[1766527577800,0.72,124.52,124.48,0.7]
[1766527578101,0.62,124.51,124.47,14.68]
[1766527578285,3.55928522,124.51,124.48,0.7]
[1766527578983,2.93928522,124.51,124.47,14.68]
[1766527579177,8.13088546,124.52,124.47,14.68]
[1766527579178,0.62,124.5,124.47,14.68]
[1766527579597,0.62,124.5,124.47,15.38]
[1766527580897,0.62,124.5,124.47,0.7]
[1766527582977,10.97151656,124.5,124.46,15.38]
[1766527583178,0.62,124.49,124.46,15.38]
[1766527583378,3.55928522,124.49,124.46,15.38]
[1766527583578,0.62,124.49,124.46,15.38]
[1766527585406,0.62,124.48,124.44,8.0355814]
[1766527585594,0.62,124.47,124.44,0.7]
[1766527588689,11.59288242,124.48,124.44,0.7]
[1766527589185,8.6535972,124.48,124.45,0.7]
[1766527589681,0.62,124.48,124.45,0.7]
[1766527589888,8.65307126,124.49,124.45,0.7]
[1766527590612,8.65348868,124.48,124.45,0.7]
[1766527594191,11.5927739,124.48,124.45,0.7]
[1766527594692,8.65348868,124.48,124.45,0.7]
[1766527594988,11.5927739,124.48,124.45,0.7]
[1766527596010,8.65348868,124.48,124.45,0.7]
[1766527596313,10.5350737,124.48,124.45,0.7]
[1766527596891,8.03148341,124.51,124.45,0.7]
[1766527597091,0.62,124.49,124.46,0.66]
[1766527597309,0.62,124.48,124.46,0.66]
[1766527598023,0.62,124.47,124.44,15.34]
[1766527606113,0.62,124.47,124.44,23.37592142]
[1766527606319,0.62,124.47,124.45,0.66]
[1766527607126,10.53454976,124.49,124.45,0.66]
[1766527607611,0.62,124.48,124.45,0.66]
[1766527608717,8.65348494,124.48,124.45,0.66]
[1766527609303,0.62,124.47,124.44,22.71592142]
[1766527609519,0.62,124.47,124.44,23.37592142]
[1766527617428,0.62,124.47,124.44,22.71592142]
[1766527617743,0.62,124.47,124.45,0.66]
[1766527618434,0.62,124.47,124.41,0.66]
[1766527618435,1.88158502,124.46,124.41,0.66]
[1766527618733,8.03407751,124.47,124.41,8.03758761]
[1766527618734,1.88158502,124.45,124.41,8.03758761]
[1766527618910,0.62,124.45,124.42,0.66]
[1766527621041,2.50158502,124.45,124.42,0.66]
[1766527621837,10.5370514,124.45,124.42,0.66]
[1766527623852,8.65546638,124.45,124.42,0.66]
[1766527624229,0.62,124.44,124.41,8.69783224]
[1766527624929,0.62,124.44,124.41,0.66]
[1766527625544,8.65546638,124.45,124.41,0.66]
[1766527625917,10.5370514,124.45,124.41,0.66]
[1766527629842,8.65546638,124.45,124.41,0.66]
[1766527630036,10.5370514,124.45,124.41,0.66]
[1766527632251,1.88158502,124.45,124.41,0.66]
[1766527632954,2.50158502,124.45,124.41,0.66]
[1766527634451,8.65569617,124.45,124.42,0.67]
[1766527634655,10.53728119,124.45,124.42,0.67]
[1766527635938,1e-08,124.43,124.4,15.35]
[1766527636127,8.03569617,124.45,124.4,15.35]
[1766527636327,1.88158502,124.43,124.4,15.35]
[1766527636556,9.91842658,124.43,124.4,0.67]
[1766527637747,9.91842658,124.43,124.39,8.03910391]
[1766527637748,9.91842658,124.43,124.39,0.67]
[1766527638142,8.03684156,124.43,124.39,0.67]
[1766527638658,8.03535556,124.45,124.41,0.67]
[1766527639453,8.03535556,124.45,124.41,2.55158502]
[1766527640361,8.03535556,124.45,124.41,0.67]
[1766527640860,8.03535556,124.45,124.41,2.55158502]
[1766527641233,8.03535556,124.45,124.41,0.67]
[1766527649569,8.03415251,124.47,124.43,0.67]